Cogmind - Beta 15 @@@ ROGUE MODE // 2025.06.22 @ 16:56:33 Player: Ladmageddon Result: Smashed by cave-in Performance ------------- Evolutions (1) 500 Regions Visited (3) 600 Robots Destroyed (19) 95 Value Destroyed (445) 445 Prototype IDs (0) 0 Alien Tech Used (0) 0 Bonus (0) 0 TOTAL SCORE: 1640 Bonus ------- None Cogmind --------- Core Integrity 0/400 Matter 238/300 Energy 100/100 System Corruption 54% Temperature Cool (0) Movement Core (50) Location -9/Mines Parts ------- > --- POWER (1) -------- (None) > --- PROPULSION (2) --- (None) > --- UTILITY (4) ------ (None) > --- WEAPON (2) ------- (None) > --- INVENTORY (5) ---- (None) Peak State ------------ > --- POWER ------------ Ion Engine > --- PROPULSION ------- Wheel Compact Wheel > --- UTILITY ---------- Small Storage Unit Small Matter Pod Improved Terrain Scanner Light Armor Plating > --- WEAPON ----------- Small Laser Light Assault Rifle > --- INVENTORY -------- Light Ion Engine Compact Wheel Compact Wheel Grenade Launcher Mining Claw [Rating: 11] Favorites ----------- Power Ion Engine Engine Ion Engine Power Core Light Nuclear Core Propulsion Wheel Wheel Wheel Utility Small Storage Unit Device Seismic Detector Storage Small Storage Unit Protection Light Armor Plating Weapon Light Assault Rifle Energy Gun Small Laser Energy Cannon Particle Cannon Ballistic Gun Light Assault Rifle Launcher Grenade Launcher Special Weapon Mining Laser Slashing Weapon Mining Claw Build | -11 -10 -9 -9 ------- Run | Yrd Mat Mat Min Slots Evolved 2 | . . 2 . Power . | . . . . Propulsion . | . . . . Utility 2 | . . 2 . Weapon . | . . . . Parts Attached 24 | 7 . 2 15 Power 4 | 1 . . 3 Engine 3 | 1 . . 2 Core 1 | . . . 1 Reactor . | . . . . Propulsion 6 | 2 . . 4 Treads . | . . . . Leg . | . . . . Wheel 6 | 2 . . 4 Hover . | . . . . Flight . | . . . . Utility 7 | 2 . 2 3 Device 3 | 1 . . 2 Storage 2 | 1 . 1 . Processor . | . . . . Hackware . | . . . . Protection 2 | . . 1 1 Artifact . | . . . . Weapon 7 | 2 . . 5 Energy Gun 1 | 1 . . . Energy Cannon 1 | . . . 1 Ballistic Gun 1 | 1 . . . Ballistic Cannon . | . . . . Launcher 2 | . . . 2 Special Weapon 1 | . . . 1 Impact Weapon . | . . . . Slashing Weapon 1 | . . . 1 Piercing Weapon . | . . . . Special Melee Weapon . | . . . . Unidentified Prototypes . | . . . . Parts Lost 21 | . . . 21 Power 3 | . . . 3 Propulsion 6 | . . . 6 Utility 7 | . . . 7 Weapon 5 | . . . 5 Highest Loss Streak 9 | . . . 9 To Critical Strikes . | . . . . Average Backups 4 | 1 3 5 5 Power 1 | 1 1 1 1 Propulsion 1 | . . 2 2 Utility . | . . . . Weapon 1 | . 1 2 1 Tool/Special . | . . . . Unused Backups . | . . . . Power . | . . . . Propulsion . | . . . . Utility . | . . . . Weapon . | . . . . Tool/Special . | . . . . Average Slot Usage (%) 78 | . 100 96 74 Engine 9 | . 14 11 8 Wheel 15 | . 28 22 13 Device 8 | . 14 11 7 Storage 11 | . 14 22 10 Protection 12 | . . 7 14 Energy Gun 3 | . 14 11 . Energy Cannon 1 | . . . 1 Ballistic Gun 8 | . 14 11 7 Launcher 6 | . . . 8 Peak Build Rating 11 | 9 9 11 11 Average Rating 7 | 5 9 10 7 On Entrance 7 | . 9 9 11 Naked Turns 43 | . . . 43 Heaviest Build 20 | 13 13 17 20 Greatest Support 32 | 26 26 26 32 Greatest Overweight (x) 3 | . . . 3 Average Overweight (x) . | . . . . Largest Inventory Capacity 8 | 8 8 8 8 Average Capacity 7 | 7 8 8 7 Most Carried 8 | 5 7 6 8 Average Carried 4 | 1 4 5 5 Final Capacity 8 | 8 8 8 5 Final Carried 7 | 1 7 5 . Class Distribution -------------------- 100% | Mutant Dominant Class ---------------- Mutant | -10/Materials Mutant | -9/Materials Mutant | -9/Mines Resources | -11 -10 -9 -9 ----------- Run | Yrd Mat Mat Min Matter Collected 611 | 275 . . 336 Remotely . | . . . . Salvage Created 327 | 77 . . 250 Parts 29 | 6 . . 23 Haulers Intercepted . | . . . . Recyclers Shooed 1 | 1 . . . Parts Field Recycled . | . . . . Retrieved Matter . | . . . . Parts Self-Destructed . | . . . . Prevented . | . . . . Kills | -11 -10 -9 -9 ------- Run | Yrd Mat Mat Min Combat Hostiles Destroyed 13 | . . . 13 Guns 3 | . . . 3 AOE 10 | . . . 10 Classes Destroyed 6 | 2 . . 4 Builder 1 | . . . 1 Tunneler 4 | 1 . . 3 Recycler 1 | 1 . . . Swarmer 6 | . . . 6 Grunt 6 | . . . 6 Brawler 1 | . . . 1 Best Kill Streak 5 | 2 . . 5 Combat Bots Only 3 | . . . 3 Max Kills in Single Turn 2 | 1 . . 2 Gunslinging . | . . . . Exploded 2 | . . . 2 Melee . | . . . . Uniques/NPCs Destroyed . | . . . . Combat | -11 -10 -9 -9 -------- Run | Yrd Mat Mat Min Hostile Shots Fired 30 | . . . 30 Missed 10 | . . . 10 Hits 20 | . . . 20 Projectile 20 | . . . 20 Damage Taken 1920 | . 74 . 1846 Core 410 | . . . 410 Absorbed by Shields . | . . . . Redirected to Shielding 7 | . . . 7 Core Remaining (%) 100 | 100 100 . . Volleys Fired 58 | 5 . . 53 Largest 2 | 2 . . 2 Hottest 100 | 60 . . 100 Shots Fired 88 | 10 . . 78 Gun 37 | 10 . . 27 Cannon 14 | . . . 14 Launcher 27 | . . . 27 Special 10 | . . . 10 Kinetic 32 | 5 . . 27 Thermal 29 | 5 . . 24 Explosive 27 | . . . 27 Electromagnetic . | . . . . Robot Hit Streak 5 | 3 . . 5 Robot Miss Streak 3 | 1 . . 3 Penetration Max . | . . . . Secondary Targets . | . . . . Shots Hit Robots 27 | 6 . . 21 Core Hits 28 | 3 . . 25 Critical Kills . | . . . . Critical Parts Destroyed . | . . . . Critical Strikes . | . . . . Melee Attacks 6 | . . . 6 Impact . | . . . . Slashing 6 | . . . 6 Piercing . | . . . . Sneak Attacks . | . . . . Combat Hostiles . | . . . . Follow-up Attacks . | . . . . Damage Inflicted 1138 | 57 . . 1081 Guns 150 | 57 . . 93 Cannons 20 | . . . 20 Explosions 948 | . . . 948 Melee . | . . . . Ramming 20 | . . . 20 Kinetic 119 | 26 . . 93 Thermal 51 | 31 . . 20 Explosive 948 | . . . 948 Electromagnetic . | . . . . Impact . | . . . . Slashing . | . . . . Piercing . | . . . . Highest Corruption 54 | . . . 54 Average Corruption 17 | . . . 17 Corruption Purged . | . . . . Corruption Blocked . | . . . . Effects 27 | . . . 27 Message Errors 10 | . . . 10 Matter Fused 5 | . . . 5 Heat Flow Errors 1 | . . . 1 Energy Discharges 3 | . . . 3 Parts Fused 1 | . . . 1 Data Loss (minor) 4 | . . . 4 Data Loss (major) 1 | . . . 1 Alerts 1 | . . . 1 Misdirections 1 | . . . 1 Overload Shots . | . . . . Overflow Damage 30 | . . . 30 Projectiles . | . . . . Explosions 30 | . . . 30 Melee . | . . . . Knockbacks . | . . . . Impact . | . . . . Kinetic . | . . . . Secondary . | . . . . Self-Inflicted Damage 155 | . . . 155 Shots 5 | . . . 5 Rammed 4 | . . . 4 Targets Rammed 4 | . . . 4 Kicked . | . . . . Crushed . | . . . . Highest Temperature 119 | 40 . . 119 Average Temperature 27 | 22 . . 28 Received Heat Transfer 90 | . . . 90 Siege Activations . | . . . . Martial Activations . | . . . . Shielding Activations . | . . . . Robots Disrupted . | . . . . Combat Hostiles . | . . . . Robots Corrupted . | . . . . Combat Hostiles . | . . . . Parts Fried . | . . . . Impact Corruptions . | . . . . Robots Melted . | . . . . Combat Hostiles . | . . . . Parts Melted . | . . . . Heat Transferred 112 | 75 . . 37 Parts Sabotaged . | . . . . Parts Stolen . | . . . . Parts Stripped . | . . . . Power Chain Reactions . | . . . . Alert | -11 -10 -9 -9 ------- Run | Yrd Mat Mat Min Maximum Alert Level 1 | . . . 1 Low Security (%) 61 | 100 100 100 51 Level 1 38 | . . . 48 Level 2 . | . . . . Level 3 . | . . . . Level 4 . | . . . . Level 5 . | . . . . High Security . | . . . . Max Security . | . . . . Peak Influence 338 | 5 14 . 338 Initial . | . . . . Average 128 | . 2 . 162 Influence Increases 579 | 10 14 . 555 Destroy 0b10 Robot/C 260 | . . . 260 Destroy 0b10 Robot/NC 30 | 10 . . 20 Destroy Leader 50 | . . . 50 Successful Hack 14 | . 14 . . Disable Machine 120 | . . . 120 Destroy Structure 105 | . . . 105 Influence Decreases 468 | 10 14 . 444 Time Decay 298 | 10 14 . 274 Lost Part 170 | . . . 170 Squads Dispatched . | . . . . Investigation . | . . . . Extermination . | . . . . Reinforcement . | . . . . Assault . | . . . . Garrison . | . . . . Intercept . | . . . . Searches Triggered . | . . . . Construction Impeded . | . . . . Haulers Reinforced . | . . . . Active Scanning Responses . | . . . . Cargo Convoy Interrupts . | . . . . Stealth | -11 -10 -9 -9 --------- Run | Yrd Mat Mat Min Distress Signals . | . . . . Communications Jammed . | . . . . Distress Signals . | . . . . Times Spotted 14 | . 1 . 13 Peak Tracking Total 3 | . 1 . 3 Tactical Retreats . | . . . . Traps | -11 -10 -9 -9 ------- Run | Yrd Mat Mat Min Traps Triggered 2 | . 2 . . Indirectly . | . . . . Trap Hack Attempts . | . . . . Triggered . | . . . . Disarmed . | . . . . Reprogrammed . | . . . . Reused . | . . . . Traps Extracted . | . . . . Installed . | . . . . Triggered . | . . . . Machines | -11 -10 -9 -9 ---------- Run | Yrd Mat Mat Min Machines Disabled 8 | . . . 8 Max in Single Turn 2 | . . . 2 Machines Repaired . | . . . . Machines Dismantled . | . . . . Machines Sabotaged . | . . . . Overloaded Fab Kills . | . . . . Hacking | -11 -10 -9 -9 --------- Run | Yrd Mat Mat Min Machines Accessed 1 | . 1 . . Terminals 1 | . 1 . . Fabricators . | . . . . Repair Stations . | . . . . Recycling Units . | . . . . Scanalyzers . | . . . . Garrison Access . | . . . . Total Hacks 3 | . 3 . . Successful 1 | . 1 . . Failed 2 | . 2 . . Catastrophic . | . . . . Database Lockouts . | . . . . Manual . | . . . . Terminals 3 | . 3 . . Fabricators . | . . . . Repair Stations . | . . . . Recycling Units . | . . . . Scanalyzers . | . . . . Garrison Access . | . . . . Terminal Hacks 1 | . 1 . . Hauler Manifests 1 | . 1 . . Fabricator Hacks . | . . . . Repair Station Hacks . | . . . . Recycling Unit Hacks . | . . . . Scanalyzer . | . . . . Garrison Access Hacks . | . . . . Unauthorized Hacks . | . . . . Terminals . | . . . . Fabricators . | . . . . Repair Stations . | . . . . Recycling Units . | . . . . Scanalyzers . | . . . . Garrison Access . | . . . . Data Cores Recovered . | . . . . Used . | . . . . Hacking Detections 1 | . 1 . . Full Trace Events . | . . . . Feedback Events . | . . . . Feedback Blocked . | . . . . Robot Schematics Acquired . | . . . . Robots Built . | . . . . Authchips . | . . . . Time . | . . . . Total Robot Build Rating . | . . . . Part Schematics Acquired . | . . . . Parts Built . | . . . . Authchips . | . . . . Time . | . . . . Total Part Build Rating . | . . . . Parts Repaired . | . . . . Time . | . . . . Parts Recycled . | . . . . Recycled Matter . | . . . . Retrieved Matter . | . . . . Retrieved Components . | . . . . Parts Scanalyzed . | . . . . Part Schematics Acquired . | . . . . Parts Damaged . | . . . . Bothacking | -11 -10 -9 -9 ------------ Run | Yrd Mat Mat Min Used RIF Installer . | . . . . Robots Hacked . | . . . . Non-combat . | . . . . Combat . | . . . . Robot Hacks Applied . | . . . . Relay Couplers Released . | . . . . Fabnet Peak Effective % . | . . . . Robots Rewired . | . . . . Allies Hacked . | . . . . Hacks Repelled . | . . . . Allies | -11 -10 -9 -9 -------- Run | Yrd Mat Mat Min Total Allies . | . . . . Largest Group . | . . . . Highest-Rated Group . | . . . . Highest-Rated Ally . | . . . . Total Orders . | . . . . Ally Attacks . | . . . . Total Damage . | . . . . Kills . | . . . . Allies Corrupted . | . . . . Allies Melted . | . . . . Intel | -11 -10 -9 -9 ------- Run | Yrd Mat Mat Min Active Infowar (turns) 643 | 26 129 16 472 Terrain 245 | 26 129 16 74 Seismic 398 | . . . 398 Robot Analysis Total . | . . . . Derelict Logs Recovered 1 | . . . 1 Drone Launches . | . . . . Drone Recoveries . | . . . . Exploration | -11 -10 -9 -9 ------------- Run | Yrd Mat Mat Min Turns Passed 1000 | 66 129 16 789 Spaces Moved 765 | 49 137 16 563 Core 20 | 14 . . 6 Treads . | . . . . Legs . | . . . . Wheels 745 | 35 137 16 557 Hover . | . . . . Flight . | . . . . Fastest Speed 50 | 50 90 90 50 Average Speed 91 | 78 90 90 92 Slowest Speed 200 | 90 90 90 200 Overloaded Moves . | . . . . Propulsion Burnouts . | . . . . Robots Hopped . | . . . . Potential Cave-ins 45 | . . . 45 Cave-ins Triggered 10 | . . . 10 Exploration Rate (%) 30 | 5 21 3 94 Regions Visited 3 Branch Regions 1 Pre-discovered Areas 1 | . . . 1 Known Exits Taken . | . . . . Unknown Exits Taken 3 | 1 1 1 . Scrap Searched 2 | . . . 2 Spaces Dug 39 | . . . 39 Terrain Destroyed 163 | . . . 163 Melee 2 | . . . 2 Projectile 21 | . . . 21 AOE 140 | . . . 140 Terrain Rammed . | . . . . Walls Destroyed . | . . . . Machines Disabled . | . . . . Actions | -11 -10 -9 -9 --------- Run | Yrd Mat Mat Min Total 952 | 66 142 17 727 Wait 74 | . . . 74 Move 758 | 48 136 15 559 Hop . | . . . . Pick Up 21 | 6 6 . 9 Fast Attach 3 | 2 . . 1 Attach 19 | 5 . 2 12 Detach . | . . . . Swap 3 | . . . 3 Drop 2 | . . . 2 Fire 58 | 5 . . 53 Melee 6 | . . . 6 Ram 4 | . . . 4 Kick . | . . . . Crush . | . . . . Escape Stasis 4 | . . . 4 Rewire . | . . . . Trap . | . . . . Miscellaneous . | . . . . Route ------- -11/Scrapyard -10/Materials -9/Materials -9/Mines (discovered 1 exit: [*Mat]) History --------- Turn | Location | Event 21 | -11/Scrapyard | Discovered new exit (range 15) 67 | -11/Scrapyard | Entered Materials 191 | -10/Materials | Discovered new exit (range 6) 196 | -10/Materials | Entered another Materials area 196 | -9/Materials | Evolved 2 slots: Utility x2 198 | -9/Materials | Discovered new exit (range 8) 212 | -9/Materials | Entered Mines 286 | -9/Mines | Crushed by falling debris 286 | -9/Mines | System corruption reached 10% 307 | -9/Mines | Build established: Mutant 317 | -9/Mines | Lost 4 parts (1n2u1w) 462 | -9/Mines | YI-UF0 nonchalantly dropped a Grenade Launcher on the ground 498 | -9/Mines | Discovered new exit (range 5) 671 | -9/Mines | Learned location of Zion (-7) 679 | -9/Mines | Found a hidden stash of uninstalled traps 864 | -9/Mines | Crushed by falling debris 870 | -9/Mines | Crushed by falling debris 871 | -9/Mines | Crushed by falling debris 871 | -9/Mines | Core integrity fell below 50% 871 | -9/Mines | System corruption reached 30% 881 | -9/Mines | Crushed by falling debris 901 | -9/Mines | Lost 9 parts (1p1n4u3w) 922 | -9/Mines | Crushed by falling debris 928 | -9/Mines | Crushed by falling debris 959 | -9/Mines | Lost 4 parts (1p1n1u1w) 963 | -9/Mines | Crushed by falling debris 963 | -9/Mines | Core integrity fell below 20% 995 | -9/Mines | Crushed by falling debris 1002 | -9/Mines | Crushed by falling debris 1002 | -9/Mines | Smashed by cave-in Last Messages --------------- System corrupted by crushing effect (+3). Imp. Heat Sink destroyed. System corrupted by crushing effect (+2). Com. Wheel destroyed. System corrupted by crushing effect (+4). The unstable cave ceiling collapses. Crushed by falling debris. Particle Cannon destroyed. System corrupted by crushing effect (+4). The unstable cave ceiling collapses. System corrupted: Energy discharge (-38). The unstable cave ceiling collapses. Crushed by falling debris. Com. Wheel destroyed. System corrupted by crushing effect (+3). System corrupted: Matter fused (-9). The unstable cave ceiling collapses. Crushed by falling debris. The unstable cave ceiling collapses. Crushed by falling debris. Map ----- +----------------------------------------------------+ | | | | | | | | | | | | | | | | | | | | | | | | | | | | | | | | | | | | | ?????????????????#####?????????????????#?????????? | | ?????????????????# #?????????????????????#?????? | | ???????????????### ##????????#?????????????????? | | #??????????????# # ##???????????????????????#?? | | ##????????????## ##############????????#?????????? | | ##???????????# ###??## #### ##?????????????????? | | ##??????????## #????# ### ##?#######????????? | | ##????????#####????# #@# ### ####?????? | | ########## ##?????# ### #?????? | | "##??????# ## = #???#?? | | #?#?????### ## #### # # #?????? | | ###### ##??????###########??###### #?????? | | ##????# ##??????????????????????## #????#? | | ##????## #???#??#??????#??#????## ##????? | | #?????# #??#????????#????????## #????? | | #????## #????????????#???????# #????? | | #???## ##?????????????#??????# ##????? | | ###?## ##??????????????????#??# ##?????? | | #?# ##????????????????###### ##?????? | | #### #?????####??????## ## #??????? | | # ## #???### ##????## ##??????? | | ### ##?## #????# ##????#??? | | ##?# ### #????## #????????? | | #?## ######?### ##???????? | | #??## ##?## #???????? | | #???## # ### #???????? | | ##????### ## #???????? | | #???????## ## ##???#???? | | #????????### [ [ = ##????????? | | # #??????????# ###????????#? | | ### ##??????????# # #### ##???????????? | | ??# #???????????## *!# ### ##???????????? | +----------------------------------------------------+ Best States ------------- Heat Dissipation 42 Energy Generation 14 Energy Capacity 250 Matter Stores 300 Matter Capacity 350 Sight Range 16 Terrain Scan Range 16 Terrain Scan Density 10 Armor Coverage 150 Core Shielding 20 Evasion (%) 50 Item Schematics ----------------- None Robot Schematics ------------------ None Fabricated ------------ Nothing Repaired ---------- Nothing Alien Tech Used ----------------- None Achievements -------------- None Challenges ------------ None Game ------ Seed NeutronCargoNukerbomber Manual? 0 Play Time 00:16:22 Cumulative 16.2 hours Start 2025.06.22 @ 16:43:00 End 2025.06.22 @ 16:56:33 Sessions 1 Manual Loads 0 Difficulty Rogue Special Mode None Game No. 37 Rogue 34 Adventurer 3 Explorer 0 Win Type - Total 0 Types 0/0/0/0/0/0/0/0/0/0 Lore% 11 Gallery% 24 Achievement% 20 Wizard Run 0 Options --------- Layout 1 ASCII 0 Keyboard 0 Movement Mouse Keybinds 0 Fullscreen 1 Font 16/SmallcapsGlow Map View 25x20 Zoom Use 96% Tactical HUD 0 Map Filters NONE Filters NONE Steam SD RUN: 2af13b4a-6879-45e9-86c5-18ac015703f1